[Event "Titled Tuesday Blitz July 11 Early 2023"]
[White "Svane, Frederik"]
[Black "Gordievsky, Dmitry"]
[WhiteFideId "12923044"]
[BlackFideId "24112798"]
[WhiteElo "2796"]
[BlackElo "2911"]
[Result "0-1"]
[Round "11"]
[TimeControl "180+2"]
[Date "2023.07.11"]
[WhiteClock "0:00:01"]
[BlackClock "0:00:04"]
[Board "11"]

1. e3 {[%clk 0:02:57]}  Nf6 {[%clk 0:02:59]} 2. b3 {[%clk 0:02:57]}  c5 {[%clk 0:02:58]} 3. Bb2 {[%clk 0:02:58]}  g6 {[%clk 0:02:59]} 4. g4 {[%clk 0:02:58]}  Bg7 {[%clk 0:02:54]} 5. g5 {[%clk 0:02:58]}  Nh5 {[%clk 0:02:54]} 6. Bxg7 {[%clk 0:02:58]}  Nxg7 {[%clk 0:02:55]} 7. c4 {[%clk 0:02:56]}  d5 {[%clk 0:02:52]} 8. Bg2 {[%clk 0:02:52]}  d4 {[%clk 0:02:50]} 9. Nf3 {[%clk 0:02:48]}  Nc6 {[%clk 0:02:49]} 10. d3 {[%clk 0:02:44]}  Bg4 {[%clk 0:02:49]} 11. h3 {[%clk 0:02:40]}  Bh5 {[%clk 0:02:49]} 12. O-O {[%clk 0:02:13]}  Ne6 {[%clk 0:02:45]} 13. Qd2 {[%clk 0:02:04]}  Bxf3 {[%clk 0:02:34]} 14. Bxf3 {[%clk 0:02:04]}  Nxg5 {[%clk 0:02:34]} 15. Bg2 {[%clk 0:02:04]}  Ne6 {[%clk 0:02:04]} 16. Na3 {[%clk 0:01:57]}  O-O {[%clk 0:01:54]} 17. Nc2 {[%clk 0:01:52]}  Qd7 {[%clk 0:01:49]} 18. Rad1 {[%clk 0:01:50]}  Rad8 {[%clk 0:01:49]} 19. a3 {[%clk 0:01:47]}  a5 {[%clk 0:01:48]} 20. b4 {[%clk 0:01:40]}  axb4 {[%clk 0:01:47]} 21. axb4 {[%clk 0:01:41]}  cxb4 {[%clk 0:01:47]} 22. Nxb4 {[%clk 0:01:42]}  Ng5 {[%clk 0:01:12]} 23. h4 {[%clk 0:01:20]}  Nh3+ {[%clk 0:01:09]} 24. Kh2 {[%clk 0:01:21]}  Nxf2 {[%clk 0:01:05]} 25. Nxc6 {[%clk 0:00:55]}  Ng4+ {[%clk 0:01:04]} 26. Kh1 {[%clk 0:00:53]}  dxe3 {[%clk 0:00:54]} 27. Ne5 {[%clk 0:00:41]}  exd2 {[%clk 0:00:43]} 28. Nxd7 {[%clk 0:00:41]}  Rxd7 {[%clk 0:00:44]} 29. Rxd2 {[%clk 0:00:42]}  Ne5 {[%clk 0:00:31]} 30. Rb2 {[%clk 0:00:34]}  Nxd3 {[%clk 0:00:26]} 31. Rxb7 {[%clk 0:00:32]}  Rxb7 {[%clk 0:00:27]} 32. Bxb7 {[%clk 0:00:32]}  Nc5 {[%clk 0:00:27]} 33. Bg2 {[%clk 0:00:32]}  Rd8 {[%clk 0:00:27]} 34. Re1 {[%clk 0:00:29]}  Rd4 {[%clk 0:00:22]} 35. Rxe7 {[%clk 0:00:25]}  Rxh4+ {[%clk 0:00:21]} 36. Kg1 {[%clk 0:00:26]}  Rxc4 {[%clk 0:00:20]} 37. Rxf7 {[%clk 0:00:25]}  Kxf7 {[%clk 0:00:20]} 38. Bd5+ {[%clk 0:00:26]}  Kf6 {[%clk 0:00:20]} 39. Bxc4 {[%clk 0:00:26]}  h5 {[%clk 0:00:20]} 40. Be2 {[%clk 0:00:26]}  Kg5 {[%clk 0:00:20]} 41. Kg2 {[%clk 0:00:25]}  Kh4 {[%clk 0:00:20]} 42. Kf3 {[%clk 0:00:16]}  g5 {[%clk 0:00:20]} 43. Bb5 {[%clk 0:00:16]}  Ne6 {[%clk 0:00:18]} 44. Be8 {[%clk 0:00:16]}  g4+ {[%clk 0:00:18]} 45. Kf2 {[%clk 0:00:15]}  Kg5 {[%clk 0:00:18]} 46. Bd7 {[%clk 0:00:16]}  Nf4 {[%clk 0:00:18]} 47. Bc6 {[%clk 0:00:15]}  h4 {[%clk 0:00:18]} 48. Ke3 {[%clk 0:00:15]}  h3 {[%clk 0:00:16]} 49. Kf2 {[%clk 0:00:10]}  Kh4 {[%clk 0:00:16]} 50. Be4 {[%clk 0:00:09]}  g3+ {[%clk 0:00:09]} 51. Kg1 {[%clk 0:00:10]}  Ne2+ {[%clk 0:00:06]} 52. Kh1 {[%clk 0:00:10]}  Nd4 {[%clk 0:00:05]} 53. Kg1 {[%clk 0:00:08]}  Kg4 {[%clk 0:00:05]} 54. Kh1 {[%clk 0:00:07]}  Kf4 {[%clk 0:00:05]} 55. Bb7 {[%clk 0:00:01]}  Nf3 {[%clk 0:00:04]} 56. Be4 {[%clk 0:00:01]}  g2# {[%clk 0:00:04]} 0-1


[Site "https://www.chess.com"]

[Event "Titled Tuesday Blitz July 11 Early 2023"]
[White "Movahed, Sina"]
[Black "Bauman_Guy"]
[WhiteFideId "42520835"]
[WhiteElo "2993"]
[BlackElo "2764"]
[Result "1-0"]
[Round "11"]
[TimeControl "180+2"]
[Date "2023.07.11"]
[WhiteClock "0:00:05"]
[BlackClock "0:00:02"]
[Board "12"]

1. e4 {[%clk 0:03:00]}  c5 {[%clk 0:03:00]} 2. Nf3 {[%clk 0:03:00]}  d6 {[%clk 0:03:00]} 3. d4 {[%clk 0:03:01]}  Nf6 {[%clk 0:03:01]} 4. Nc3 {[%clk 0:03:01]}  cxd4 {[%clk 0:03:01]} 5. Nxd4 {[%clk 0:03:02]}  a6 {[%clk 0:03:02]} 6. Bg5 {[%clk 0:03:01]}  Nbd7 {[%clk 0:03:01]} 7. Bc4 {[%clk 0:02:59]}  e6 {[%clk 0:03:01]} 8. Qe2 {[%clk 0:02:56]}  b5 {[%clk 0:02:57]} 9. Bb3 {[%clk 0:02:55]}  Nc5 {[%clk 0:02:57]} 10. O-O-O {[%clk 0:02:50]}  Qc7 {[%clk 0:02:43]} 11. Bxf6 {[%clk 0:02:33]}  gxf6 {[%clk 0:02:43]} 12. f4 {[%clk 0:02:29]}  Bd7 {[%clk 0:02:37]} 13. a3 {[%clk 0:02:21]}  h5 {[%clk 0:02:36]} 14. Kb1 {[%clk 0:02:20]}  Rb8 {[%clk 0:02:29]} 15. f5 {[%clk 0:02:19]}  Be7 {[%clk 0:02:15]} 16. Rhf1 {[%clk 0:02:15]}  b4 {[%clk 0:02:14]} 17. axb4 {[%clk 0:02:14]}  Rxb4 {[%clk 0:02:15]} 18. fxe6 {[%clk 0:02:14]}  fxe6 {[%clk 0:02:15]} 19. Nf5 {[%clk 0:01:59]}  Nxb3 {[%clk 0:02:05]} 20. cxb3 {[%clk 0:01:49]}  Rxb3 {[%clk 0:02:04]} 21. Rc1 {[%clk 0:01:42]}  Qb6 {[%clk 0:01:49]} 22. Rf3 {[%clk 0:01:19]}  Kf7 {[%clk 0:00:57]} 23. Nxe7 {[%clk 0:00:59]}  Kxe7 {[%clk 0:00:56]} 24. Rc2 {[%clk 0:00:38]}  Rb8 {[%clk 0:00:46]} 25. Rg3 {[%clk 0:00:30]}  Be8 {[%clk 0:00:41]} 26. Qd2 {[%clk 0:00:22]}  Bf7 {[%clk 0:00:35]} 27. Rf3 {[%clk 0:00:20]}  Qg1+ {[%clk 0:00:28]} 28. Nd1 {[%clk 0:00:16]}  Qxh2 {[%clk 0:00:27]} 29. Rc7+ {[%clk 0:00:14]}  Ke8 {[%clk 0:00:24]} 30. Rxf6 {[%clk 0:00:13]}  Qg1 {[%clk 0:00:19]} 31. Rc2 {[%clk 0:00:06]}  Ke7 {[%clk 0:00:16]} 32. Rf4 {[%clk 0:00:05]}  Bg6 {[%clk 0:00:13]} 33. Kc1 {[%clk 0:00:05]}  Qb6 {[%clk 0:00:11]} 34. Rf2 {[%clk 0:00:05]}  Qb5 {[%clk 0:00:10]} 35. Rc7+ {[%clk 0:00:04]}  Kd8 {[%clk 0:00:10]} 36. Rc3 {[%clk 0:00:05]}  Kd7 {[%clk 0:00:08]} 37. Rc2 {[%clk 0:00:04]}  Bxe4 {[%clk 0:00:06]} 38. Rf7+ {[%clk 0:00:04]}  Ke8 {[%clk 0:00:07]} 39. Rcc7 {[%clk 0:00:05]}  Rd3 {[%clk 0:00:04]} 40. Rf8+ {[%clk 0:00:04]}  Kxf8 {[%clk 0:00:02]} 41. Qh6+ {[%clk 0:00:05]}  Ke8 {[%clk 0:00:02]} 42. Qh8# {[%clk 0:00:05]} 1-0


[Site "https://www.chess.com"]

[Event "Titled Tuesday Blitz July 11 Early 2023"]
[White "NikaVolkov"]
[Black "Galchenko, Matvey"]
[BlackFideId "24175480"]
[WhiteElo "2719"]
[BlackElo "2863"]
[Result "0-1"]
[Round "11"]
[TimeControl "180+2"]
[Date "2023.07.11"]
[WhiteClock "0:00:04"]
[BlackClock "0:00:06"]
[Board "16"]

1. d4 {[%clk 0:03:00]}  Nf6 {[%clk 0:02:57]} 2. c4 {[%clk 0:02:58]}  c5 {[%clk 0:02:57]} 3. e3 {[%clk 0:02:58]}  g6 {[%clk 0:02:56]} 4. Nf3 {[%clk 0:02:58]}  Bg7 {[%clk 0:02:56]} 5. Nc3 {[%clk 0:02:58]}  cxd4 {[%clk 0:02:56]} 6. exd4 {[%clk 0:02:59]}  d5 {[%clk 0:02:56]} 7. Be2 {[%clk 0:02:59]}  O-O {[%clk 0:02:57]} 8. O-O {[%clk 0:03:00]}  Nc6 {[%clk 0:02:57]} 9. Be3 {[%clk 0:03:00]}  Bg4 {[%clk 0:02:55]} 10. h3 {[%clk 0:03:01]}  Bxf3 {[%clk 0:02:55]} 11. Bxf3 {[%clk 0:03:01]}  dxc4 {[%clk 0:02:52]} 12. Bxc6 {[%clk 0:03:02]}  bxc6 {[%clk 0:02:52]} 13. Qa4 {[%clk 0:03:03]}  Qd7 {[%clk 0:02:39]} 14. Qxc4 {[%clk 0:03:02]}  Nd5 {[%clk 0:02:38]} 15. Rac1 {[%clk 0:03:02]}  Rab8 {[%clk 0:02:32]} 16. b3 {[%clk 0:03:02]}  Nxc3 {[%clk 0:02:29]} 17. Rxc3 {[%clk 0:02:59]}  Rfc8 {[%clk 0:02:29]} 18. a3 {[%clk 0:02:50]}  c5 {[%clk 0:02:26]} 19. Rfc1 {[%clk 0:02:44]}  Bxd4 {[%clk 0:01:59]} 20. Rd3 {[%clk 0:02:19]}  e5 {[%clk 0:01:56]} 21. f4 {[%clk 0:02:20]}  exf4 {[%clk 0:01:42]} 22. Bf2 {[%clk 0:02:12]}  Qe7 {[%clk 0:01:07]} 23. Bxd4 {[%clk 0:02:06]}  cxd4 {[%clk 0:01:05]} 24. Qxc8+ {[%clk 0:02:06]}  Rxc8 {[%clk 0:01:06]} 25. Rxc8+ {[%clk 0:02:07]}  Kg7 {[%clk 0:01:07]} 26. Rc4 {[%clk 0:02:08]}  Qxa3 {[%clk 0:01:01]} 27. Rcxd4 {[%clk 0:02:04]}  g5 {[%clk 0:01:00]} 28. Rd7 {[%clk 0:01:54]}  h5 {[%clk 0:00:58]} 29. Rb7 {[%clk 0:01:53]}  g4 {[%clk 0:00:50]} 30. hxg4 {[%clk 0:01:44]}  hxg4 {[%clk 0:00:42]} 31. Rdd7 {[%clk 0:01:44]}  Qc1+ {[%clk 0:00:27]} 32. Kh2 {[%clk 0:01:39]}  g3+ {[%clk 0:00:27]} 33. Kh3 {[%clk 0:01:39]}  Kg6 {[%clk 0:00:13]} 34. Rxf7 {[%clk 0:01:35]}  Qh1+ {[%clk 0:00:13]} 35. Kg4 {[%clk 0:01:36]}  Qxg2 {[%clk 0:00:12]} 36. Rg7+ {[%clk 0:01:19]}  Kf6 {[%clk 0:00:12]} 37. Rbf7+ {[%clk 0:01:20]}  Ke6 {[%clk 0:00:12]} 38. Rxf4 {[%clk 0:01:10]}  Qg1 {[%clk 0:00:08]} 39. Rg6+ {[%clk 0:01:08]}  Kd7 {[%clk 0:00:08]} 40. Rf7+ {[%clk 0:01:04]}  Ke8 {[%clk 0:00:08]} 41. Rh7 {[%clk 0:00:53]}  Qd1+ {[%clk 0:00:08]} 42. Kg5 {[%clk 0:00:48]}  Qd2+ {[%clk 0:00:08]} 43. Kg4 {[%clk 0:00:17]}  Qd1+ {[%clk 0:00:06]} 44. Kg5 {[%clk 0:00:10]}  Qd5+ {[%clk 0:00:05]} 45. Kh6 {[%clk 0:00:10]}  Qd2+ {[%clk 0:00:03]} 46. Kg7 {[%clk 0:00:08]}  Qd4+ {[%clk 0:00:03]} 47. Kg8 {[%clk 0:00:05]}  Qd5+ {[%clk 0:00:02]} 48. Kh8 {[%clk 0:00:05]}  g2 {[%clk 0:00:02]} 49. Rhg7 {[%clk 0:00:02]}  Qh5+ {[%clk 0:00:03]} 50. Kg8 {[%clk 0:00:03]}  Qd5+ {[%clk 0:00:03]} 51. Kh8 {[%clk 0:00:03]}  Qh5+ {[%clk 0:00:04]} 52. Kg8 {[%clk 0:00:04]}  g1=Q {[%clk 0:00:03]} 53. Rxg1 {[%clk 0:00:03]}  Qd5+ {[%clk 0:00:03]} 54. Kh8 {[%clk 0:00:04]}  Qxb3 {[%clk 0:00:04]} 55. Rg8+ {[%clk 0:00:04]}  Kd7 {[%clk 0:00:04]} 56. R1g7+ {[%clk 0:00:04]}  Kc6 {[%clk 0:00:05]} 57. Rxa7 {[%clk 0:00:03]}  Qc3+ {[%clk 0:00:05]} 58. Rag7 {[%clk 0:00:03]}  Kd6 {[%clk 0:00:06]} 59. Rf8 {[%clk 0:00:03]}  Ke6 {[%clk 0:00:06]} 60. Kg8 {[%clk 0:00:03]}  Qc4 {[%clk 0:00:06]} 61. Rff7 {[%clk 0:00:04]}  Ke5 {[%clk 0:00:05]} 62. Rg6 {[%clk 0:00:04]}  Qd4 {[%clk 0:00:04]} 63. Re7+ {[%clk 0:00:03]}  Kf5 {[%clk 0:00:05]} 64. Kh7 {[%clk 0:00:03]}  Qh4+ {[%clk 0:00:05]} 65. Kg8 {[%clk 0:00:01]}  Qxe7 {[%clk 0:00:05]} 66. Rg7 {[%clk 0:00:02]}  Qe8+ {[%clk 0:00:05]} 67. Kh7 {[%clk 0:00:02]}  Kf6 {[%clk 0:00:06]} 68. Kh6 {[%clk 0:00:01]}  Qe3+ {[%clk 0:00:04]} 69. Kh7 {[%clk 0:00:01]}  Qe4+ {[%clk 0:00:04]} 70. Kh8 {[%clk 0:00:01]}  Qe8+ {[%clk 0:00:03]} 71. Kh7 {[%clk 0:00:02]}  Qh5+ {[%clk 0:00:04]} 72. Kg8 {[%clk 0:00:03]}  Qd5+ {[%clk 0:00:04]} 73. Kh8 {[%clk 0:00:03]}  Qh1+ {[%clk 0:00:04]} 74. Kg8 {[%clk 0:00:03]}  Qa8+ {[%clk 0:00:05]} 75. Kh7 {[%clk 0:00:04]}  Qe8 {[%clk 0:00:05]} 76. Kh6 {[%clk 0:00:03]}  Qf8 {[%clk 0:00:06]} 77. Kh7 {[%clk 0:00:04]}  Qxg7# {[%clk 0:00:06]} 0-1


[Site "https://www.chess.com"]

[Event "Titled Tuesday Blitz July 11 Early 2023"]
[White "Dinosaurio_1975"]
[Black "Zemlyanskii, Ivan"]
[BlackFideId "24249971"]
[WhiteElo "2591"]
[BlackElo "2791"]
[Result "0-1"]
[Round "11"]
[TimeControl "180+2"]
[Date "2023.07.11"]
[WhiteClock "0:00:17"]
[BlackClock "0:00:25"]
[Board "20"]

1. Nf3 {[%clk 0:02:59]}  d5 {[%clk 0:02:58]} 2. g3 {[%clk 0:02:59]}  Nf6 {[%clk 0:02:53]} 3. Bg2 {[%clk 0:02:59]}  c5 {[%clk 0:02:48]} 4. O-O {[%clk 0:02:58]}  e6 {[%clk 0:02:49]} 5. b3 {[%clk 0:02:58]}  Be7 {[%clk 0:02:47]} 6. Bb2 {[%clk 0:02:59]}  O-O {[%clk 0:02:47]} 7. d4 {[%clk 0:02:59]}  cxd4 {[%clk 0:02:46]} 8. Nxd4 {[%clk 0:02:59]}  e5 {[%clk 0:02:46]} 9. Nf3 {[%clk 0:02:58]}  e4 {[%clk 0:02:46]} 10. Nd4 {[%clk 0:02:58]}  Nc6 {[%clk 0:02:46]} 11. Nd2 {[%clk 0:02:58]}  e3 {[%clk 0:02:30]} 12. fxe3 {[%clk 0:02:58]}  Ng4 {[%clk 0:02:29]} 13. Nxc6 {[%clk 0:02:42]}  bxc6 {[%clk 0:02:29]} 14. Rf3 {[%clk 0:02:42]}  Bg5 {[%clk 0:02:15]} 15. Nf1 {[%clk 0:02:42]}  Qe7 {[%clk 0:02:07]} 16. h3 {[%clk 0:02:32]}  Ne5 {[%clk 0:01:54]} 17. Rf2 {[%clk 0:02:29]}  Re8 {[%clk 0:01:49]} 18. Qd4 {[%clk 0:02:24]}  Bf6 {[%clk 0:01:46]} 19. Qf4 {[%clk 0:02:23]}  h6 {[%clk 0:01:32]} 20. e4 {[%clk 0:02:09]}  Qc5 {[%clk 0:01:18]} 21. exd5 {[%clk 0:01:50]}  Ng6 {[%clk 0:01:11]} 22. Qc1 {[%clk 0:01:44]}  Rxe2 {[%clk 0:01:09]} 23. Ne3 {[%clk 0:01:08]}  Bxb2 {[%clk 0:00:58]} 24. Qxb2 {[%clk 0:01:08]}  Qxe3 {[%clk 0:00:58]} 25. Rf1 {[%clk 0:01:08]}  cxd5 {[%clk 0:00:40]} 26. Qb1 {[%clk 0:00:34]}  Be6 {[%clk 0:00:37]} 27. Qd1 {[%clk 0:00:34]}  Rxf2 {[%clk 0:00:36]} 28. Rxf2 {[%clk 0:00:35]}  Qxg3 {[%clk 0:00:36]} 29. Qf3 {[%clk 0:00:29]}  Qxf3 {[%clk 0:00:30]} 30. Bxf3 {[%clk 0:00:30]}  Rc8 {[%clk 0:00:28]} 31. Kh2 {[%clk 0:00:28]}  Ne5 {[%clk 0:00:25]} 32. Bg2 {[%clk 0:00:25]}  Rc3 {[%clk 0:00:25]} 33. Rd2 {[%clk 0:00:24]}  Nf3+ {[%clk 0:00:24]} 34. Bxf3 {[%clk 0:00:17]}  Rxf3 {[%clk 0:00:25]} 0-1


[Site "https://www.chess.com"]

[Event "Titled Tuesday Blitz July 11 Early 2023"]
[White "lagarto93"]
[Black "Schmakel, Sam"]
[BlackFideId "2039311"]
[WhiteElo "2538"]
[BlackElo "2781"]
[Result "0-1"]
[Round "11"]
[TimeControl "180+2"]
[Date "2023.07.11"]
[WhiteClock "0:00:14"]
[BlackClock "0:00:08"]
[Board "21"]

1. d4 {[%clk 0:03:00]}  d5 {[%clk 0:02:50]} 2. c4 {[%clk 0:03:00]}  e6 {[%clk 0:02:50]} 3. Nc3 {[%clk 0:02:59]}  Nf6 {[%clk 0:02:49]} 4. cxd5 {[%clk 0:03:00]}  exd5 {[%clk 0:02:50]} 5. Bg5 {[%clk 0:03:00]}  c6 {[%clk 0:02:44]} 6. e3 {[%clk 0:03:00]}  h6 {[%clk 0:02:44]} 7. Bh4 {[%clk 0:02:59]}  Be7 {[%clk 0:02:44]} 8. Bd3 {[%clk 0:02:59]}  O-O {[%clk 0:02:45]} 9. Nf3 {[%clk 0:02:59]}  Re8 {[%clk 0:02:44]} 10. O-O {[%clk 0:02:58]}  Nbd7 {[%clk 0:02:45]} 11. Qc2 {[%clk 0:02:54]}  Ne4 {[%clk 0:02:31]} 12. Bxe7 {[%clk 0:02:52]}  Qxe7 {[%clk 0:02:31]} 13. Rab1 {[%clk 0:02:49]}  a5 {[%clk 0:02:03]} 14. a3 {[%clk 0:02:48]}  Ndf6 {[%clk 0:01:56]} 15. Ne5 {[%clk 0:02:47]}  Ng4 {[%clk 0:01:43]} 16. Nxg4 {[%clk 0:02:31]}  Bxg4 {[%clk 0:01:44]} 17. Rbe1 {[%clk 0:02:29]}  Nd6 {[%clk 0:01:31]} 18. f3 {[%clk 0:02:27]}  Bd7 {[%clk 0:01:24]} 19. e4 {[%clk 0:02:26]}  dxe4 {[%clk 0:01:24]} 20. fxe4 {[%clk 0:02:25]}  f6 {[%clk 0:01:14]} 21. e5 {[%clk 0:02:20]}  fxe5 {[%clk 0:01:14]} 22. dxe5 {[%clk 0:02:19]}  Nf7 {[%clk 0:01:12]} 23. Bh7+ {[%clk 0:01:39]}  Kh8 {[%clk 0:01:12]} 24. Bg6 {[%clk 0:01:34]}  Rf8 {[%clk 0:01:02]} 25. Qe2 {[%clk 0:00:55]}  Be6 {[%clk 0:00:48]} 26. Bc2 {[%clk 0:00:46]}  Qc5+ {[%clk 0:00:34]} 27. Kh1 {[%clk 0:00:45]}  Bc4 {[%clk 0:00:33]} 28. Qe4 {[%clk 0:00:26]}  Ng5 {[%clk 0:00:31]} 29. Rxf8+ {[%clk 0:00:26]}  Rxf8 {[%clk 0:00:30]} 30. Qg6 {[%clk 0:00:22]}  Qxe5 {[%clk 0:00:25]} 31. Rd1 {[%clk 0:00:21]}  Qf6 {[%clk 0:00:06]} 32. h4 {[%clk 0:00:21]}  Qxg6 {[%clk 0:00:05]} 33. Bxg6 {[%clk 0:00:22]}  Ne6 {[%clk 0:00:04]} 34. Rd7 {[%clk 0:00:22]}  b5 {[%clk 0:00:03]} 35. Ne4 {[%clk 0:00:21]}  b4 {[%clk 0:00:03]} 36. Nd6 {[%clk 0:00:21]}  Bd5 {[%clk 0:00:03]} 37. Nf7+ {[%clk 0:00:21]}  Kg8 {[%clk 0:00:03]} 38. axb4 {[%clk 0:00:16]}  Nf4 {[%clk 0:00:03]} 39. h5 {[%clk 0:00:15]}  Bxf7 {[%clk 0:00:03]} 40. Bxf7+ {[%clk 0:00:11]}  Rxf7 {[%clk 0:00:04]} 41. Rd6 {[%clk 0:00:12]}  axb4 {[%clk 0:00:03]} 42. Rxc6 {[%clk 0:00:12]}  Nxh5 {[%clk 0:00:02]} 43. Rb6 {[%clk 0:00:13]}  Rf4 {[%clk 0:00:03]} 44. Rb5 {[%clk 0:00:13]}  Nf6 {[%clk 0:00:03]} 45. g3 {[%clk 0:00:12]}  Rd4 {[%clk 0:00:03]} 46. Kg2 {[%clk 0:00:13]}  Kh7 {[%clk 0:00:04]} 47. Kf3 {[%clk 0:00:13]}  g5 {[%clk 0:00:04]} 48. Ke3 {[%clk 0:00:14]}  Re4+ {[%clk 0:00:04]} 49. Kf3 {[%clk 0:00:14]}  Rc4 {[%clk 0:00:05]} 50. Rb6 {[%clk 0:00:14]}  Kg6 {[%clk 0:00:05]} 51. Ke3 {[%clk 0:00:14]}  h5 {[%clk 0:00:06]} 52. Kd3 {[%clk 0:00:15]}  Rg4 {[%clk 0:00:06]} 53. Ke2 {[%clk 0:00:14]}  Rxg3 {[%clk 0:00:06]} 54. Rxb4 {[%clk 0:00:14]}  h4 {[%clk 0:00:07]} 55. Kf2 {[%clk 0:00:14]}  Rd3 {[%clk 0:00:06]} 56. Rc4 {[%clk 0:00:14]}  Rd6 {[%clk 0:00:06]} 57. b4 {[%clk 0:00:15]}  Rb6 {[%clk 0:00:07]} 58. Kf3 {[%clk 0:00:15]}  Nd5 {[%clk 0:00:07]} 59. Rd4 {[%clk 0:00:14]}  Nxb4 {[%clk 0:00:07]} 60. Kg4 {[%clk 0:00:14]}  Nc2 {[%clk 0:00:07]} 61. Rd5 {[%clk 0:00:15]}  Ne3+ {[%clk 0:00:07]} 62. Kh3 {[%clk 0:00:14]}  Nxd5 {[%clk 0:00:08]} 0-1


[Site "https://www.chess.com"]

[Event "Titled Tuesday Blitz July 11 Early 2023"]
[White "Kozak, Antoni"]
[Black "arenal72"]
[WhiteFideId "21832030"]
[WhiteElo "2777"]
[BlackElo "2472"]
[Result "1/2-1/2"]
[Round "11"]
[TimeControl "180+2"]
[Date "2023.07.11"]
[WhiteClock "0:00:07"]
[BlackClock "0:00:03"]
[Board "22"]

1. e4 {[%clk 0:02:48]}  Nc6 {[%clk 0:03:00]} 2. Nf3 {[%clk 0:02:47]}  d6 {[%clk 0:03:00]} 3. d4 {[%clk 0:02:46]}  Nf6 {[%clk 0:03:00]} 4. Nc3 {[%clk 0:02:45]}  g6 {[%clk 0:03:00]} 5. Be3 {[%clk 0:02:44]}  a6 {[%clk 0:03:00]} 6. a4 {[%clk 0:02:35]}  Bg7 {[%clk 0:02:55]} 7. h3 {[%clk 0:02:31]}  O-O {[%clk 0:02:48]} 8. g4 {[%clk 0:02:31]}  Nb4 {[%clk 0:02:46]} 9. Bg2 {[%clk 0:02:14]}  a5 {[%clk 0:02:41]} 10. O-O {[%clk 0:02:12]}  c6 {[%clk 0:02:41]} 11. Qd2 {[%clk 0:02:05]}  Qc7 {[%clk 0:02:37]} 12. Rae1 {[%clk 0:02:05]}  e5 {[%clk 0:02:35]} 13. Rd1 {[%clk 0:02:04]}  Be6 {[%clk 0:02:31]} 14. Rfe1 {[%clk 0:02:01]}  Rad8 {[%clk 0:02:29]} 15. Ng5 {[%clk 0:02:01]}  Bc8 {[%clk 0:02:27]} 16. f4 {[%clk 0:02:01]}  Rfe8 {[%clk 0:02:02]} 17. Qf2 {[%clk 0:01:56]}  exf4 {[%clk 0:01:58]} 18. Bxf4 {[%clk 0:01:54]}  h6 {[%clk 0:01:54]} 19. Nf3 {[%clk 0:01:53]}  Qb6 {[%clk 0:01:52]} 20. Qd2 {[%clk 0:01:35]}  h5 {[%clk 0:01:45]} 21. g5 {[%clk 0:01:34]}  Nh7 {[%clk 0:01:43]} 22. Kh1 {[%clk 0:01:33]}  Nf8 {[%clk 0:01:38]} 23. Be3 {[%clk 0:01:30]}  d5 {[%clk 0:01:38]} 24. e5 {[%clk 0:01:28]}  Bf5 {[%clk 0:01:38]} 25. Rc1 {[%clk 0:01:27]}  Qc7 {[%clk 0:01:32]} 26. Rf1 {[%clk 0:01:21]}  Qd7 {[%clk 0:01:29]} 27. Kh2 {[%clk 0:01:19]}  b6 {[%clk 0:01:25]} 28. Qf2 {[%clk 0:01:14]}  Be6 {[%clk 0:01:22]} 29. b3 {[%clk 0:01:07]}  Rc8 {[%clk 0:01:11]} 30. Ne1 {[%clk 0:00:49]}  Bf5 {[%clk 0:01:08]} 31. Nf3 {[%clk 0:00:46]}  Rc7 {[%clk 0:01:05]} 32. Nh4 {[%clk 0:00:46]}  Be6 {[%clk 0:01:05]} 33. Qd2 {[%clk 0:00:27]}  Qd8 {[%clk 0:01:03]} 34. Ne2 {[%clk 0:00:25]}  c5 {[%clk 0:01:01]} 35. c3 {[%clk 0:00:25]}  Na6 {[%clk 0:00:56]} 36. Nf4 {[%clk 0:00:26]}  cxd4 {[%clk 0:00:53]} 37. cxd4 {[%clk 0:00:23]}  Nb4 {[%clk 0:00:50]} 38. Rxc7 {[%clk 0:00:21]}  Qxc7 {[%clk 0:00:50]} 39. Rc1 {[%clk 0:00:21]}  Qd7 {[%clk 0:00:50]} 40. Bf1 {[%clk 0:00:15]}  Rc8 {[%clk 0:00:49]} 41. Bb5 {[%clk 0:00:15]}  Qd8 {[%clk 0:00:47]} 42. Nf3 {[%clk 0:00:14]}  Bf5 {[%clk 0:00:43]} 43. h4 {[%clk 0:00:11]}  Ne6 {[%clk 0:00:42]} 44. Nxe6 {[%clk 0:00:09]}  fxe6 {[%clk 0:00:42]} 45. Rxc8 {[%clk 0:00:08]}  Qxc8 {[%clk 0:00:43]} 46. Qc1 {[%clk 0:00:08]}  Qxc1 {[%clk 0:00:42]} 47. Bxc1 {[%clk 0:00:09]}  Na2 {[%clk 0:00:35]} 48. Bb2 {[%clk 0:00:06]}  Bf8 {[%clk 0:00:33]} 49. Kg3 {[%clk 0:00:03]}  Bc2 {[%clk 0:00:33]} 50. Be8 {[%clk 0:00:03]}  Kg7 {[%clk 0:00:30]} 51. Ne1 {[%clk 0:00:04]}  Bxb3 {[%clk 0:00:28]} 52. Nd3 {[%clk 0:00:04]}  Bc2 {[%clk 0:00:24]} 53. Nf4 {[%clk 0:00:04]}  Bf5 {[%clk 0:00:24]} 54. Bb5 {[%clk 0:00:03]}  Kf7 {[%clk 0:00:20]} 55. Kf3 {[%clk 0:00:04]}  Bb4 {[%clk 0:00:18]} 56. Ke3 {[%clk 0:00:03]}  Bc3 {[%clk 0:00:17]} 57. Ba3 {[%clk 0:00:02]}  Nb4 {[%clk 0:00:16]} 58. Bxb4 {[%clk 0:00:01]}  Bxb4 {[%clk 0:00:16]} 59. Bd3 {[%clk 0:00:01]}  Bxd3 {[%clk 0:00:15]} 60. Kxd3 {[%clk 0:00:01]}  Be1 {[%clk 0:00:15]} 61. Ng2 {[%clk 0:00:02]}  Bb4 {[%clk 0:00:14]} 62. Kc2 {[%clk 0:00:02]}  Ke7 {[%clk 0:00:13]} 63. Kb3 {[%clk 0:00:02]}  Bd2 {[%clk 0:00:12]} 64. Kc2 {[%clk 0:00:02]}  Bb4 {[%clk 0:00:12]} 65. Kd3 {[%clk 0:00:03]}  Ba3 {[%clk 0:00:11]} 66. Nf4 {[%clk 0:00:03]}  Kf7 {[%clk 0:00:10]} 67. Ng2 {[%clk 0:00:04]}  Bc1 {[%clk 0:00:10]} 68. Kc2 {[%clk 0:00:04]}  Ba3 {[%clk 0:00:10]} 69. Kc3 {[%clk 0:00:04]}  Ke7 {[%clk 0:00:09]} 70. Kb3 {[%clk 0:00:04]}  Bb4 {[%clk 0:00:09]} 71. Kc2 {[%clk 0:00:05]}  Ke8 {[%clk 0:00:08]} 72. Kd3 {[%clk 0:00:06]}  Ba3 {[%clk 0:00:05]} 73. Ke2 {[%clk 0:00:06]}  Bc1 {[%clk 0:00:05]} 74. Kd1 {[%clk 0:00:06]}  Bb2 {[%clk 0:00:05]} 75. Kc2 {[%clk 0:00:07]}  Bxd4 {[%clk 0:00:05]} 76. Nf4 {[%clk 0:00:06]}  Kf7 {[%clk 0:00:05]} 77. Nd3 {[%clk 0:00:07]}  Ba1 {[%clk 0:00:03]} 78. Kb1 {[%clk 0:00:07]}  Bd4 {[%clk 0:00:03]} 79. Kc2 {[%clk 0:00:08]}  Ke7 {[%clk 0:00:03]} 80. Nf4 {[%clk 0:00:06]}  Kf7 {[%clk 0:00:03]} 81. Nd3 {[%clk 0:00:07]} 1/2-1/2


[Site "https://www.chess.com"]